fUST/lending_fUST_20240403
["ID","MTS","AMOUNT","RATE_DAILY","PERIOD"]
[321398939,1712133053901,-501.85650446,0.00039726,5]
[321398940,1712133053910,-500.0,0.00039726,5]
[321398941,1712133053919,-500.0,0.00039726,5]
[321398942,1712133053929,-500.0,0.00039726,5]
[321398943,1712133053938,-500.0,0.00039726,5]
[321398944,1712133053947,-500.0,0.00039726,5]
[321398945,1712133053955,-500.0,0.00039726,5]
[321398946,1712133053964,-500.0,0.00039726,5]
[321398947,1712133053973,-647.67472873,0.00039726,5]
[321398948,1712133053983,-500.0,0.00039726,5]
[321398949,1712133053992,-500.0,0.00039726,5]
[321398950,1712133054001,-500.0,0.00039726,5]
[321398951,1712133054010,-500.0,0.00039726,5]
[321398952,1712133054020,-510.25137986,0.00039726,5]
[321398953,1712133054029,-518.62476905,0.00039726,5]
[321398954,1712133054038,-515.6817344,0.00039726,5]
[321398955,1712133054048,-500.0,0.00039726,5]
[321398956,1712133054057,-500.0,0.00039726,5]
[321398957,1712133054066,-500.0,0.00039726,5]
[321398958,1712133054075,-500.0,0.00039726,5]
[321398959,1712133054084,-500.0,0.00039726,5]
[321398960,1712133054093,-500.0,0.00039726,5]
[321398961,1712133054103,-500.0,0.00039726,5]
[321398962,1712133054112,-190.65991863,0.00039726,5]
[321398963,1712133054121,-500.0,0.00039726,5]
[321398964,1712133054130,-524.72855973,0.00039726,5]
[321398965,1712133054139,-500.0,0.00039726,5]
[321398966,1712133054149,-500.0,0.00039726,5]
[321398967,1712133054157,-500.0,0.00039726,5]
[321398968,1712133054166,-500.0,0.00039726,5]
[321398969,1712133054175,-500.0,0.00039726,5]
[321398970,1712133054184,-233.51373606,0.00039726,5]
[321398971,1712133054193,-500.0,0.00039726,5]
[321398972,1712133054202,-500.0,0.00039726,5]
[321398973,1712133054211,-499.84243722,0.00039726,5]
[321398974,1712133054220,-500.0,0.00039726,5]
[321398975,1712133054229,-500.0,0.00039726,5]
[321398976,1712133054238,-500.0,0.00039726,5]
[321398977,1712133054247,-288.72143261,0.00039726,5]
[321398978,1712133054256,-500.0,0.00039726,5]
[321398979,1712133054266,-500.0,0.00039726,5]
[321398980,1712133054275,-221.66668152,0.00039726,5]
[321398981,1712133054284,-544.15,0.00039726,5]
[321398982,1712133054293,-500.0,0.00039726,5]
[321398983,1712133054302,-544.15,0.00039726,5]
[321398984,1712133054311,-500.0,0.00039726,5]
[321398985,1712133054321,-544.15,0.00039726,5]
[321398986,1712133054330,-500.0,0.00039726,5]
[321398987,1712133054339,-544.15,0.00039726,5]
[321398988,1712133054348,-500.0,0.00039726,5]
[321398989,1712133054358,-500.0,0.00039726,5]
[321398990,1712133054367,-544.15,0.00039726,5]
[321398991,1712133054377,-500.0,0.00039726,5]
[321398992,1712133054386,-544.15,0.00039726,5]
[321398993,1712133054395,-566.09024181,0.00039726,5]
[321398994,1712133054405,-557.97011412,0.00039726,5]
[321398995,1712133054415,-544.15,0.00039726,5]
[321398996,1712133054425,-500.0,0.00039726,5]
[321398997,1712133054434,-544.15,0.00039726,5]
[321398998,1712133054444,-500.0,0.00039726,5]
[321398999,1712133054455,-544.15,0.00039726,5]
[321399000,1712133054464,-500.0,0.00039726,5]
[321399001,1712133054473,-544.15,0.00039726,5]
[321399002,1712133054483,-500.0,0.00039726,5]
[321399003,1712133054492,-544.15,0.00039726,5]
[321399004,1712133054502,-500.0,0.00039726,5]
[321399005,1712133054512,-544.15,0.00039726,5]
[321399006,1712133054522,-500.0,0.00039726,5]
[321399007,1712133054534,-544.15,0.00039726,5]
[321399008,1712133054543,-544.15,0.00039726,5]
[321399009,1712133054553,-500.0,0.00039726,5]
[321399010,1712133054562,-544.15,0.00039726,5]
[321399011,1712133054571,-500.0,0.00039726,5]
[321399012,1712133054633,-544.15,0.00039726,5]
[321399013,1712133054645,-544.15,0.00039726,5]
[321399014,1712133054654,-500.0,0.00039726,5]
[321399015,1712133054665,-500.0,0.00039726,5]
[321399016,1712133054675,-544.15,0.00039726,5]
[321399017,1712133054684,-544.15,0.00039726,5]
[321399018,1712133054694,-500.0,0.00039726,5]
[321399019,1712133054703,-544.15,0.00039726,5]
[321399020,1712133054712,-500.0,0.00039726,5]
[321399021,1712133054722,-544.15,0.00039726,5]
[321399022,1712133054731,-500.0,0.00039726,5]
[321399023,1712133054740,-544.15,0.00039726,5]
[321399024,1712133054750,-500.0,0.00039726,5]
[321399025,1712133054759,-544.15,0.00039726,5]
[321399026,1712133054768,-500.0,0.00039726,5]
[321399027,1712133054777,-502.00303279,0.00039726,5]
[321399028,1712133054787,-544.29238304,0.00039726,5]
[321399029,1712133054796,-640.2290843,0.00039726,5]
[321399030,1712133054806,-500.0,0.00039726,5]
[321399031,1712133054815,-508.28987442,0.00039726,5]
[321399032,1712133054825,-500.0,0.00039726,5]
[321399033,1712133054834,-500.0,0.00039726,5]
[321399034,1712133054843,-500.0,0.00039726,5]
[321399035,1712133054854,-500.0,0.00039726,5]
[321399036,1712133054864,-500.0,0.00039726,5]
[321399037,1712133054873,-500.0,0.00039726,5]
[321399038,1712133054882,-632.81198553,0.00039726,5]
[321399039,1712133054891,-501.50089122,0.00039726,5]
[321399040,1712133054900,-500.0,0.00039726,5]
[321399041,1712133054909,-500.0,0.00039726,5]
[321399042,1712133054918,-500.0,0.00039726,5]
[321399043,1712133054927,-500.0,0.00039726,5]
[321399044,1712133054936,-500.0,0.00039726,5]
[321399045,1712133054945,-500.0,0.00039726,5]
[321399046,1712133054954,-500.0,0.00039726,5]
[321399047,1712133054963,-500.0,0.00039726,5]
[321399048,1712133054972,-500.0,0.00039726,5]
[321399049,1712133054980,-500.0,0.00039726,5]
[321399050,1712133054990,-500.0,0.00039726,5]
[321399051,1712133054998,-500.0,0.00039726,5]
[321399052,1712133055007,-500.72268119,0.00039726,5]
[321399053,1712133055016,-500.0,0.00039726,5]
[321399054,1712133055025,-500.0,0.00039726,5]
[321399055,1712133055034,-500.0,0.00039726,5]
[321399056,1712133055043,-500.0,0.00039726,5]
[321399057,1712133055052,-500.0,0.00039726,5]
[321399058,1712133055061,-500.0,0.00039726,5]
[321399059,1712133055070,-500.0,0.00039726,5]
[321399060,1712133055079,-500.0,0.00039726,5]
[321399061,1712133055088,-500.0,0.00039726,5]
[321399062,1712133055098,-500.0,0.00039726,5]
[321399063,1712133055107,-500.0,0.00039726,5]
[321399064,1712133055118,-500.0,0.00039726,5]
[321399065,1712133055128,-500.0,0.00039726,5]
[321399066,1712133055139,-500.0,0.00039726,5]
[321399067,1712133055150,-612.20944024,0.00039726,5]
[321399068,1712133055161,-500.0,0.00039726,5]
[321399069,1712133055171,-500.0,0.00039726,5]
[321399070,1712133055182,-519.93772126,0.00039726,5]
[321399071,1712133055192,-177.26091744,0.00039726,5]
[321399072,1712133055201,-500.0,0.00039726,5]
[321399073,1712133055211,-500.0,0.00039726,5]
[321399074,1712133055221,-500.0,0.00039726,5]
[321399075,1712133055230,-600.4137882,0.00039726,5]
[321399076,1712133055239,-500.0,0.00039726,5]
[321399077,1712133055249,-500.0,0.00039726,5]
[321399078,1712133055259,-500.0,0.00039726,5]
[321399079,1712133055268,-500.0,0.00039726,5]
[321399080,1712133055278,-500.0,0.00039726,5]
[321399081,1712133055287,-509.02282181,0.00039726,5]
[321399082,1712133055296,-500.0,0.00039726,5]
[321399083,1712133055306,-393.28528859,0.00039726,5]
[321399084,1712133055315,-176.57958923,0.00039726,5]
[321399085,1712133055325,-500.0,0.00039726,5]
[321399086,1712133055333,-424.57705183,0.00039726,5]
[321399087,1712133055343,-500.09650501,0.00039726,5]
[321399088,1712133055353,-500.0,0.00039726,5]
[321399089,1712133055362,-500.0,0.00039726,5]
[321399090,1712133055371,-500.0,0.00039726,5]
[321399091,1712133055381,-500.0,0.00039726,5]
[321399092,1712133055390,-500.0,0.00039726,5]
[321399093,1712133055400,-500.0,0.00039726,5]
[321399094,1712133055408,-500.0,0.00039726,5]
[321399095,1712133055418,-500.0,0.00039726,5]
[321399096,1712133055427,-500.0,0.00039726,5]
[321399097,1712133055436,-500.0,0.00039726,5]
[321399098,1712133055446,-500.0,0.00039726,5]
[321399099,1712133055455,-545.95172571,0.00039726,5]
[321399100,1712133055465,-500.0,0.00039726,5]
[321399101,1712133055525,-500.0,0.00039726,5]
[321399102,1712133055536,-500.0,0.00039726,5]
[321399103,1712133055546,-500.0,0.00039726,5]
[321399104,1712133055557,-500.0,0.00039726,5]
[321399105,1712133055566,-500.0,0.00039726,5]
[321399106,1712133055575,-500.0,0.00039726,5]
[321399107,1712133055584,-155.08056517,0.00039726,5]
[321399108,1712133055593,-500.0,0.00039726,5]
[321399109,1712133055605,-500.0,0.00039726,5]
[321399110,1712133055615,-500.0,0.00039726,5]
[321399111,1712133055624,-500.0,0.00039726,5]
[321399112,1712133055633,-500.0,0.00039726,5]
[321399113,1712133055643,-500.0,0.00039726,5]
[321399114,1712133055652,-500.0,0.00039726,5]
[321399115,1712133055661,-1000.0,0.00039726,5]
[321399116,1712133055670,-500.0,0.00039726,5]
[321399117,1712133055679,-372.45446799,0.00039726,5]
[321399118,1712133055688,-500.0,0.00039726,5]
[321399119,1712133055698,-500.0,0.00039726,5]
[321399120,1712133055707,-517.45826236,0.00039726,5]
[321399121,1712133055716,-500.0,0.00039726,5]
[321399122,1712133055725,-500.0,0.00039726,5]
[321399123,1712133055734,-500.0,0.00039726,5]
[321399124,1712133055743,-314.87229035,0.00039726,5]
[321399125,1712133055754,-500.0,0.00039726,5]
[321399126,1712133055763,-500.0,0.00039726,5]
[321399127,1712133055773,-500.0,0.00039726,5]
[321399128,1712133055782,-258.59190397,0.00039726,5]
[321399129,1712133055792,-500.0,0.00039726,5]
[321399130,1712133055802,-506.59471556,0.00039726,5]
[321399131,1712133055813,-485.88309027,0.00039726,5]
[321399132,1712133055822,-534.96498977,0.00039726,5]
[321399133,1712133055832,-500.0,0.00039726,5]
[321399134,1712133055842,-500.0,0.00039726,5]
[321399135,1712133055852,-500.0,0.00039726,5]
[321399136,1712133055861,-500.0,0.00039726,5]
[321399137,1712133055870,-500.0,0.00039726,5]
[321399138,1712133055879,-500.0,0.00039726,5]
[321399139,1712133055888,-500.0,0.00039726,5]
[321399140,1712133055898,-500.0,0.00039726,5]
[321399141,1712133055907,-171.55938027,0.00039726,5]
[321399142,1712133055916,-500.0,0.00039726,5]
[321399143,1712133055926,-500.0,0.00039726,5]
[321399144,1712133055935,-500.0,0.00039726,5]
[321399145,1712133055945,-500.0,0.00039726,5]
[321399146,1712133055954,-500.0,0.00039726,5]
[321399147,1712133055963,-500.0,0.00039726,5]
[321399148,1712133055972,-498.47251595,0.00039726,5]
[321399149,1712133055982,-256.94860015,0.00039726,5]
[321399277,1712134232891,-379.99757424,0.00033288,4]
[321399279,1712134232900,-699.832,0.00033289,4]
[321399281,1712134232910,-100.54110576,0.00033289,4]
[321399355,1712134238682,-2545.24981176,0.00033289,4]
[321399393,1712134243035,-2364.81716873,0.00033289,4]
[321399395,1712134243044,-2845.31390782,0.0003329,4]
[321399397,1712134243054,-929.97698099,0.00033333,4]
[321399399,1712134243063,-7185.58911804,0.00034999,2]
[321399403,1712134243095,-13663.36834406,0.00034999,2]
[321399404,1712134243104,-6872.87554506,0.00035,2]
[321399405,1712134243114,-315.95281655,0.00035,4]
[321399406,1712134243123,-12389.0,0.00036,2]
[321399407,1712134243134,-1500.0,0.00038256,2]
[321399408,1712134243143,-628.23840798,0.00038354,4]
[321399409,1712134243153,-464.52912341,0.00038354,4]
[321399410,1712134243162,-208.84415989,0.00038354,4]
[321399411,1712134243171,-692.8804185,0.00038354,4]
[321399412,1712134243180,-184.10329178,0.00038355,4]
[321399413,1712134243189,-500.0,0.00038356,5]
[321399414,1712134243198,-504.73353792,0.00038356,5]
[321399415,1712134243207,-455.57434776,0.00038356,5]
[321399416,1712134243216,-500.0,0.00038356,5]
[321399417,1712134243225,-504.95626151,0.00038356,5]
[321399418,1712134243234,-500.0,0.00038356,5]
[321399419,1712134243243,-506.82235269,0.00038356,5]
[321399420,1712134243252,-500.0,0.00038356,5]
[321399421,1712134243262,-515.4676987,0.00038356,5]
[321399422,1712134243271,-158.84900646,0.00038356,5]
[321399423,1712134243280,-500.0,0.00038356,5]
[321399424,1712134243288,-500.0,0.00038356,5]
[321399425,1712134243297,-500.0,0.00038356,5]
[321399426,1712134243306,-500.0,0.00038356,5]
[321399427,1712134243315,-500.0,0.00038356,5]
[321399428,1712134243324,-500.0,0.00038356,5]
[321399429,1712134243333,-500.0,0.00038356,5]
[321399430,1712134243342,-500.0,0.00038356,5]
[321399431,1712134243351,-500.0,0.00038356,5]
[321399432,1712134243360,-500.0,0.00038356,5]
[321399433,1712134243369,-500.0,0.00038356,5]
[321399435,1712134243378,-500.0,0.00038356,5]
[321399436,1712134243386,-500.0,0.00038356,5]
[321399438,1712134243399,-500.0,0.00038356,5]
[321399440,1712134243408,-507.38869293,0.00038356,5]
[321399441,1712134243417,-500.0,0.00038356,5]
[321399442,1712134243429,-500.0,0.00038356,5]
[321399443,1712134243438,-500.0,0.00038356,5]
[321399444,1712134243447,-500.0,0.00038356,5]
[321399445,1712134243458,-500.0,0.00038356,5]
[321399446,1712134243467,-500.0,0.00038356,5]
[321399447,1712134243476,-500.0,0.00038356,5]
[321399448,1712134243486,-500.0,0.00038356,5]
[321399449,1712134243494,-500.0,0.00038356,5]
[321399450,1712134243504,-643.4152915,0.00038356,5]
[321399451,1712134243513,-500.0,0.00038356,5]
[321399452,1712134243522,-500.0,0.00038356,5]
[321399453,1712134243531,-500.0,0.00038356,5]
[321399454,1712134243540,-339.48423333,0.00038356,5]
[321399455,1712134243549,-170.20915654,0.00038356,5]
[321399456,1712134243559,-504.72189726,0.00038356,5]
[321399457,1712134243568,-500.0,0.00038356,5]
[321399458,1712134243577,-637.43702449,0.00038356,5]
[321399459,1712134243587,-500.0,0.00038356,5]
[321399460,1712134243597,-500.0,0.00038356,5]
[321399461,1712134243607,-235.14388019,0.00038356,5]
[321399462,1712134243616,-500.0,0.00038356,5]
[321399463,1712134243626,-591.92379515,0.00038356,5]
[321399464,1712134243635,-500.0,0.00038356,5]
[321399465,1712134243644,-514.54635557,0.00038356,5]
[321399466,1712134243655,-502.54055236,0.00038356,5]
[321399467,1712134243664,-500.0,0.00038356,5]
[321399468,1712134243673,-509.92846959,0.00038356,5]
[321399470,1712134243683,-2665.51,0.00038356,5]
[321399472,1712134243692,-1420.4572391,0.00038356,5]
[321399701,1712135433139,-699.832,0.00033925,4]
[321399702,1712135433149,-258.8497369,0.00033926,4]
[321399703,1712135433158,-2807.80898399,0.00033926,4]
[321399704,1712135433168,-2110.69798225,0.00033926,2]
[321399705,1712135433178,-379.99757424,0.00033927,4]
[321399706,1712135433188,-2845.31390782,0.00033927,4]
[321399707,1712135433203,-1619.095615,0.00033943,120]
[321399708,1712135433213,-400.0,0.00033982,2]
[321399709,1712135433222,-3073.68279929,0.00033983,4]
[321399710,1712135433232,-1000.0,0.00034,2]
[321399711,1712135433243,-1938.6276658,0.0003413,2]
[321399712,1712135433252,-159.7579457,0.00034228,2]
[321399713,1712135433261,-166.224072,0.00034228,2]
[321399714,1712135433271,-6340.70657577,0.00034243,2]
[321399854,1712135440826,-8232.23185593,0.00034243,2]
[321399855,1712135440835,-162.31336363,0.00034273,6]
[321399856,1712135440845,-192.9224074,0.00034373,2]
[321399857,1712135440854,-2367.86115732,0.00035,2]
[321399858,1712135440863,-595.1551022,0.00035,2]
[321399859,1712135440872,-315.95281655,0.00036238,4]
[321399860,1712135440881,-255.27892519,0.0003624,2]
[321399861,1712135440893,-159.11247171,0.00036437,4]
[321399862,1712135440902,-260.0,0.00036475,2]
[321399863,1712135440911,-151.0,0.00037015,2]
[321399864,1712135440920,-7261.47190007,0.0003755,5]
[321399888,1712135446915,-8895.68980735,0.0003755,5]
[321399889,1712135446926,-4694.7473,0.00037929,30]
[321399891,1712135446936,-1500.0,0.00038256,2]
[321399893,1712135446945,-185.52270335,0.00038256,2]
[321399896,1712135446955,-5513.31002191,0.000383,2]
[321399898,1712135446965,-588.257107,0.000383,30]
[321399900,1712135446974,-150.5,0.0003833,35]
[321399901,1712135446983,-1458.0,0.0003833,35]
[321399903,1712135446992,-938.0,0.0003833,35]
[321399905,1712135447001,-150.5,0.0003834,35]
[321399907,1712135447011,-1458.0,0.0003834,35]
[321399908,1712135447020,-938.0,0.0003834,35]
[321399909,1712135447030,-150.5,0.0003835,35]
[321399910,1712135447039,-1458.0,0.0003835,35]
[321399911,1712135447049,-938.0,0.0003835,35]
[321399912,1712135447058,-699.832,0.00038354,4]
[321399913,1712135447067,-290.15825293,0.00038354,2]
[321399914,1712135447077,-291.33250191,0.00038354,4]
[321399915,1712135447086,-208.87687713,0.00038354,2]
[321399916,1712135447096,-989.13837441,0.00038354,4]
[321399917,1712135447106,-241.5511931,0.00038354,4]
[321399918,1712135447116,-339.00505328,0.00038354,4]
[321399919,1712135447126,-3018.15584019,0.00038354,4]
[321399920,1712135447138,-309.66063683,0.00038354,4]
[321399921,1712135447149,-365.50583545,0.00038355,4]
[321399922,1712135447159,-3251.12753883,0.00038355,4]
[321399923,1712135447168,-2441.73061312,0.00038355,4]
[321399924,1712135447179,-336.84676511,0.00038355,4]
[321399925,1712135447189,-276.90211789,0.00038355,4]
[321399926,1712135447202,-169384.62858846,0.00038356,3]
[321399934,1712135568662,630.0,0.00031298,60]
[321399972,1712136046083,2469.5562,0.00039556,120]
[321400054,1712136582080,156.59751136,0.00019,2]
[321400055,1712136610687,-1214.321711,0.0003575,120]
[321400057,1712136631849,-162.31336359,0.00035648,7]
[321400104,1712136637936,-379.99757424,0.00035498,4]
[321400105,1712136637950,-699.832,0.00035498,4]
[321400106,1712136637963,-155.0558201,0.00035499,4]
[321400107,1712136637976,-315.95281655,0.00035499,4]
[321400108,1712136637988,-2845.31390782,0.000355,4]
[321400109,1712136637998,-300.0,0.000355,2]
[321400110,1712136638008,-400.0,0.000355,2]
[321400111,1712136638018,-24002.74842187,0.00035501,2]
[321400112,1712136638038,-332.75,0.00035501,2]
[321400113,1712136638060,-564.50157813,0.00035501,2]
[321400114,1712136638073,-1230.43204282,0.00035941,2]
[321400115,1712136642224,-2388.80527555,0.00035941,2]
[321400120,1712136643134,-1872.90063523,0.00035941,2]
[321400121,1712136643146,-529.63631036,0.00036365,4]
[321400122,1712136643172,-7294.96368964,0.00036365,4]
[321400123,1712136643184,-166.224072,0.00037088,2]
[321400124,1712136643196,-153.0,0.00037478,2]
[321400125,1712136643207,-153.0,0.000379,2]
[321400126,1712136643219,-3476.03,0.00038,120]
[321400127,1712136643231,-153.0,0.00038082,2]
[321400128,1712136643242,-153.0,0.00038082,2]
[321400129,1712136643254,-153.0,0.00038082,2]
[321400130,1712136643265,-153.0,0.00038082,2]
[321400131,1712136643277,-153.0,0.00038082,2]
[321400132,1712136643289,-153.0,0.00038082,2]
[321400133,1712136643300,-153.0,0.00038082,2]
[321400134,1712136643311,-153.0,0.00038082,2]
[321400135,1712136643323,-153.0,0.00038082,2]
[321400136,1712136643334,-153.0,0.00038082,2]
[321400137,1712136643345,-153.0,0.00038082,2]
[321400138,1712136643356,-153.0,0.00038082,2]
[321400139,1712136643367,-153.0,0.00038082,2]
[321400140,1712136643378,-153.0,0.00038082,2]
[321400141,1712136643389,-153.0,0.00038082,2]
[321400142,1712136643401,-153.0,0.00038082,2]
[321400143,1712136643412,-153.0,0.00038082,2]
[321400144,1712136643423,-153.0,0.00038082,2]
[321400145,1712136643433,-153.0,0.00038082,2]
[321400146,1712136643442,-150.13803641,0.00038121,7]
[321400147,1712136643451,-150.13803641,0.00038251,7]
[321400148,1712136643461,-1500.0,0.00038256,2]
[321400149,1712136643470,-1384.19771402,0.00038256,2]
[321400150,1712136643480,-1020.0,0.0003833,35]
[321400151,1712136643489,-150.5,0.0003833,35]
[321400152,1712136643663,-1020.0,0.0003834,35]
[321400153,1712136643675,-150.5,0.0003834,35]
[321400154,1712136643685,-1020.0,0.0003835,35]
[321400155,1712136643695,-150.5,0.0003835,35]
[321400156,1712136643705,-877.88883853,0.00038354,4]
[321400157,1712136643716,-595.1551022,0.00038354,2]
[321400158,1712136643725,-269.69568926,0.00038354,4]
[321400159,1712136643735,-12528.45470214,0.00038354,2]
[321400264,1712137832172,-2845.31390782,0.00034992,4]
[321400266,1712137832182,-160.0,0.00034999,2]
[321400268,1712137832191,-3641.68548964,0.00035,2]
[321400350,1712137838158,-664.5,0.00034991,4]
[321400359,1712137838231,-35.332,0.00034991,4]
[321400361,1712137838241,-997.8961845,0.00035,2]
[321400375,1712137840342,-1836.43728682,0.00035,2]
[321400376,1712137840356,-9404.27974616,0.00035,2]
[321400392,1712137843304,-1608.72472798,0.00035,2]
[321400393,1712137843316,-1804.323423,0.00035,2]
[321400394,1712137843329,-16317.61848657,0.00035,2]
[321400396,1712137843339,-315.95281655,0.00036222,4]
[321400397,1712137843348,-2037.0,0.00036223,4]
[321400399,1712137843357,-340.18200985,0.00036254,2]
[321400400,1712137843366,-910.741283,0.00036808,120]
[321400401,1712137843376,-6002.38974874,0.00036863,2]
[321400402,1712137843387,-2865.0,0.00036863,2]
[321400464,1712138415592,5389.53,0.00025,10]
[321400476,1712138604910,500.7106959,0.000265,3]
[321400483,1712138775162,340.18200985,0.000229,2]
[321400496,1712138837516,533.40903779,0.000229,2]
[321400497,1712138848532,689.93910082,0.000229,2]
[321400499,1712138852070,384.30943018,0.000229,2]
[321400500,1712138853516,533.40903779,0.000229,2]
[321400502,1712138864715,499.20047982,0.000229,5]
[321400503,1712138866475,689.93910082,0.000229,2]
[321400505,1712138876071,384.30943018,0.000229,2]
[321400507,1712138882497,689.93910082,0.000229,2]
[321400508,1712138898080,366.11220174,0.000229,2]
[321400509,1712138898489,689.93910082,0.000229,2]
[321400510,1712138916489,689.93910082,0.000229,2]
[321400514,1712138936497,689.93910082,0.000229,2]
[321400527,1712138956562,689.93910082,0.000229,2]
[321400529,1712138974502,689.93910082,0.000229,2]
[321400530,1712138990640,595.89960457,0.000229,2]
[321400597,1712139032690,-158.22839683,0.00026385,2]
[321400599,1712139032699,-934.47015297,0.00026385,2]
[321400600,1712139032834,-282.82676597,0.00026386,2]
[321400601,1712139032844,-156.53326933,0.00026387,2]
[321400602,1712139032854,-161.32446484,0.00026387,2]
[321400603,1712139032863,-3453.75563426,0.00026387,2]
[321400604,1712139032872,-187.77266928,0.00026388,2]
[321400605,1712139032881,-3233.1692898,0.00026388,2]
[321400606,1712139032890,-155.02790502,0.00026388,2]
[321400607,1712139032899,-1305.20173617,0.00026389,2]
[321400608,1712139032908,-192.65816132,0.00026389,2]
[321400610,1712139032917,-687.88161754,0.00026389,2]
[321400612,1712139032927,-300.0,0.00026389,2]
[321400614,1712139032936,-300.0,0.00026389,2]
[321400616,1712139032946,-561.73893119,0.0002639,2]
[321400618,1712139032955,-3729.32401848,0.0002639,2]
[321400620,1712139032964,-523.80284777,0.0002639,2]
[321400622,1712139032975,-1862.50241933,0.0002639,2]
[321400624,1712139032984,-185.23823077,0.00026391,2]
[321400626,1712139032993,-281.82410196,0.00026391,2]
[321400628,1712139033003,-866.98998772,0.00026391,2]
[321400630,1712139033012,-1537.55733717,0.00026394,2]
[321400632,1712139033021,-300.0,0.00026492,2]
[321400634,1712139033030,-2037.0,0.00026499,2]
[321400636,1712139033040,-1570.96235536,0.00027,2]
[321400638,1712139033050,-233.92260847,0.000275,2]
[321400640,1712139033059,-340.18200985,0.000279,2]
[321400643,1712139033069,-420.0,0.00028547,2]
[321400645,1712139033078,-420.0,0.00028547,2]
[321400646,1712139033089,-174.0,0.00029141,2]
[321400648,1712139033098,-1537.55733714,0.00029359,2]
[321400650,1712139033108,-587.0,0.00030882,2]
[321400652,1712139033117,-587.0,0.00030882,2]
[321400654,1712139033127,-700.78769746,0.00030995,4]
[321400656,1712139033137,-155.02480397,0.00032,4]
[321400658,1712139033148,-1147.51812303,0.00032063,2]
[321400660,1712139033158,-1537.55733714,0.00032323,2]
[321400662,1712139033167,-340.18200985,0.000329,2]
[321400664,1712139033177,-823.0,0.00033408,2]
[321400666,1712139033186,-823.0,0.00033408,2]
[321400668,1712139033195,-646.37590615,0.00033666,2]
[321400670,1712139033205,-1000.0,0.00034,2]
[321400673,1712139033215,-396.39215654,0.00034,2]
[321400674,1712139033224,-9370.06782307,0.00035,2]
[321400677,1712139033234,-315.95281655,0.00035286,4]
[321400678,1712139033243,-595.1551022,0.00035287,2]
[321400680,1712139033252,-1537.55733714,0.00035288,2]
[321400682,1712139033262,-910.741284,0.00036111,120]
[321400685,1712139033272,-1152.0,0.00036141,2]
[321400687,1712139033281,-1152.0,0.00036141,2]
[321400689,1712139033290,-202.17296299,0.00036434,4]
[321400690,1712139033299,-3455.4234933,0.00036442,2]
[321400693,1712139033308,-368.204256,0.00036756,2]
[321400695,1712139033317,-153.0,0.00036756,2]
[321400696,1712139033327,-500.0,0.00036999,15]
[321400698,1712139033338,-500.0,0.00036999,15]
[321400700,1712139033347,-235.29182211,0.00036999,15]
[321400702,1712139033356,-500.0,0.00036999,15]
[321400704,1712139033365,-402.94514943,0.00036999,15]
[321400707,1712139033378,-97.05485057,0.00036999,15]
[321400709,1712139033388,-375.46452434,0.00036999,15]
[321400711,1712139033397,-500.0,0.00036999,15]
[321400713,1712139033407,-500.0,0.00036999,15]
[321400715,1712139033417,-500.0,0.00036999,15]
[321400717,1712139033426,-500.0,0.00036999,15]
[321400719,1712139033435,-500.0,0.00036999,15]
[321400721,1712139033444,-500.0,0.00036999,15]
[321400723,1712139033452,-500.0,0.00036999,15]
[321400725,1712139033462,-500.0,0.00036999,15]